bitfinex-derivatives/quotes_BNBF0:USTF0_20250810
["timestamp","ask_amount","ask_price","bid_price","bid_amount"]
[1754852245506,0.216496,804.47,803.63,2.79576934]
[1754852246307,0.216496,804.47,803.62,2.79576934]
[1754852246709,0.216496,804.47,803.6,2.79576934]
[1754852247613,0.216496,804.47,803.61,2.79576934]
[1754852249715,0.216496,804.47,803.52,2.79576934]
[1754852251920,0.216496,804.47,803.53,2.79576934]
[1754852252317,0.216496,804.47,803.54,2.79576934]
[1754852252819,0.216496,804.47,803.56,2.79576934]
[1754852253414,0.216496,804.47,803.57,2.79576934]
[1754852256019,0.216496,804.47,803.58,2.79576934]
[1754852257021,0.216496,804.47,803.54,2.79576934]
[1754852259224,0.216496,804.47,803.56,2.79576934]
[1754852259821,0.216496,804.47,803.63,2.79576934]
[1754852260724,0.216496,804.47,803.64,2.79576934]
[1754852261221,0.216496,804.47,803.63,2.79576934]
[1754852262221,0.216496,804.47,803.34,3.90341846]
[1754852262222,0.216496,804.47,803.72,2.79576934]
[1754852266435,0.216496,804.47,803.63,2.79576934]
[1754852267033,0.216496,804.47,803.37,3.90341846]
[1754852267336,0.216496,804.47,803.07,0.216496]
[1754852272139,0.82436881,804.46,803.11,2.79576934]
[1754852272438,0.82420475,804.45,803.11,2.79576934]
[1754852272641,0.216496,804.47,803.11,2.79576934]
[1754852272840,0.82420475,804.46,803.1,2.79576934]
[1754852273042,0.82420475,804.45,803.1,2.79576934]
[1754852273242,0.216496,804.47,803.09,2.79576934]
[1754852273538,0.82405745,804.46,803.09,2.79576934]
[1754852273842,0.216496,804.47,803.09,2.79576934]
[1754852274042,0.82405745,804.46,803.09,2.79576934]
[1754852274240,0.216496,804.47,803.09,2.79576934]
[1754852274940,0.216496,804.47,803.07,3.01226534]
[1754852275338,0.216496,804.47,803.07,0.216496]
[1754852276341,0.216496,804.47,803.23,2.79576934]
[1754852276940,0.216496,804.47,803.07,0.216496]
[1754852276941,0.216496,804.47,803.24,2.79576934]
[1754852277845,0.216496,804.47,803.21,2.79576934]
[1754852278545,0.216496,804.47,803.23,2.79576934]
[1754852279942,0.216496,804.47,803.18,2.79576934]
[1754852280646,0.216496,804.47,803.17,2.79576934]
[1754852282343,0.216496,804.47,803.27,2.79576934]
[1754852282743,0.216496,804.47,803.24,2.79576934]
[1754852283246,0.216496,804.47,803.23,2.79576934]
[1754852284750,0.216496,804.47,803.24,2.79576934]
[1754852285352,0.216496,804.47,803.3,2.79576934]
[1754852286448,0.216496,804.47,803.24,2.79576934]
[1754852287654,0.216496,804.47,803.26,2.79576934]
[1754852287953,0.216496,804.47,803.29,2.79576934]
[1754852288450,0.216496,804.47,803.31,2.79576934]
[1754852290152,0.216496,804.47,803.42,2.79576934]
[1754852292256,0.216496,804.47,803.13,3.90341846]
[1754852292455,0.216496,804.47,803.08,2.79576934]
[1754852292653,0.216496,804.47,803.09,2.79576934]
[1754852295154,0.216496,804.47,803.1,2.79576934]
[1754852301560,0.216496,804.47,803.11,2.79576934]
[1754852301762,0.216496,804.47,803.23,3.90341846]
[1754852301961,0.216496,804.47,803.49,2.79576934]
[1754852303067,0.216496,804.47,803.37,2.79576934]
[1754852303564,0.216496,804.47,803.38,2.79576934]
[1754852304568,0.216496,804.47,803.39,2.79576934]
[1754852306570,0.216496,804.47,803.4,2.79576934]
[1754852307666,0.216496,804.47,803.41,2.79576934]
[1754852309273,0.216496,804.47,803.42,2.79576934]
[1754852310273,0.216496,804.47,803.36,2.79576934]
[1754852311274,0.216496,804.47,803.45,2.79576934]
[1754852311973,0.216496,804.47,803.37,2.79576934]
[1754852313069,0.216496,804.47,803.42,2.79576934]
[1754852313573,0.216496,804.47,803.13,3.90341846]
[1754852313574,0.216496,804.47,803.43,2.79576934]
[1754852313873,0.216496,804.47,803.4,2.79576934]
[1754852316776,0.216496,804.47,803.25,2.79576934]
[1754852318778,0.216496,804.47,803.26,2.79576934]
[1754852319683,0.216496,804.47,803.27,2.79576934]
[1754852320282,0.216496,804.47,803.31,2.79576934]
[1754852320785,0.216496,804.47,803.3,2.79576934]
[1754852321181,0.216496,804.47,803.33,2.79576934]
[1754852321787,0.216496,804.47,803.42,2.79576934]
[1754852323386,0.216496,804.47,803.16,3.90341846]
[1754852323387,0.216496,804.47,803.43,2.79576934]
[1754852324385,0.216496,804.47,803.29,2.79576934]
[1754852325291,0.82421822,804.46,803.29,2.79576934]
[1754852325492,0.216496,804.47,803.3,2.79576934]
[1754852325689,0.82422617,804.46,803.3,2.79576934]
[1754852325889,0.216496,804.47,803.3,2.79576934]
[1754852326088,0.82422617,804.46,803.3,2.79576934]
[1754852326393,0.216496,804.47,803.3,2.79576934]
[1754852326693,0.216496,804.47,803.46,2.79576934]
[1754852327593,0.216496,804.47,803.47,2.79576934]
[1754852327993,0.216496,804.47,803.39,2.79576934]
[1754852328693,0.216496,804.47,803.37,2.79576934]
[1754852329689,0.216496,804.47,803.38,2.79576934]
[1754852330693,0.216496,804.47,803.39,2.79576934]
[1754852331791,0.216496,804.47,803.38,2.79576934]
[1754852334397,0.216496,804.47,803.48,2.79576934]
[1754852335393,0.216496,804.47,803.49,2.79576934]
[1754852336297,0.216496,804.47,803.47,2.79576934]
[1754852337999,0.216496,804.47,803.61,2.79576934]
[1754852340002,0.216496,804.47,803.35,3.90341846]
[1754852340401,0.216496,804.47,803.27,2.79576934]
[1754852340601,0.216496,804.47,803.29,2.79576934]
[1754852341603,0.216496,804.47,803.28,2.79576934]
[1754852342701,0.216496,804.47,803.27,2.79576934]
[1754852344806,0.216496,804.47,803.26,2.79576934]
[1754852345302,0.216496,804.47,803.24,2.79576934]
[1754852346808,0.216496,804.47,803.25,2.79576934]
[1754852350109,0.216496,804.47,803.39,2.79576934]
[1754852350503,0.216496,804.47,803.38,2.79576934]
[1754852351007,0.216496,804.47,803.39,2.79576934]
[1754852351512,0.216496,804.47,803.37,2.79576934]
[1754852352612,0.216496,804.47,803.36,2.79576934]
[1754852353009,0.216496,804.47,803.3,2.79576934]
[1754852354113,0.216496,804.47,803.28,2.79576934]
[1754852354609,0.216496,804.47,803.26,2.79576934]
[1754852355213,0.216496,804.47,803.23,2.79576934]
[1754852355612,0.216496,804.47,803.2,2.79576934]
[1754852356212,0.216496,804.47,803.19,2.79576934]
[1754852356809,0.216496,804.47,803.09,2.79576934]
[1754852357310,0.216496,804.47,803.07,3.01226534]
[1754852357810,0.216496,804.47,803.07,0.216496]
[1754852358414,0.216496,804.47,803.1,2.79576934]
[1754852358913,0.216496,804.47,803.07,0.216496]
[1754852365116,0.216496,804.47,803.12,2.79576934]
[1754852365616,0.216496,804.47,803.24,2.79576934]
[1754852366116,0.216496,804.47,803.26,2.79576934]
[1754852366614,0.216496,804.47,803.39,2.79576934]
[1754852367218,0.216496,804.47,803.38,2.79576934]
[1754852367819,0.216496,804.47,803.41,2.79576934]
[1754852368318,0.216496,804.47,803.38,2.79576934]
[1754852368716,0.216496,804.47,803.36,2.79576934]
[1754852370316,0.216496,804.47,803.3,2.79576934]
[1754852370920,0.216496,804.47,803.27,2.79576934]
[1754852371620,0.216496,804.47,803.26,2.79576934]
[1754852372020,0.216496,804.47,803.25,2.79576934]
[1754852372421,0.216496,804.47,803.26,2.79576934]
[1754852374622,0.216496,804.47,803.07,0.216496]
[1754852374623,0.216496,804.47,803.28,2.79576934]
[1754852376522,0.216496,804.47,803.27,2.79576934]
[1754852377125,0.216496,804.47,803.26,2.79576934]
[1754852377728,0.216496,804.47,803.28,2.79576934]
[1754852378226,0.216496,804.47,803.31,2.79576934]
[1754852378929,0.216496,804.47,803.33,2.79576934]
[1754852379329,0.216496,804.47,803.36,2.79576934]
[1754852380033,0.216496,804.47,803.39,2.79576934]
[1754852380432,0.216496,804.47,803.45,2.79576934]
[1754852380933,0.216496,804.47,803.53,2.79576934]
[1754852381430,0.216496,804.47,803.57,2.79576934]
[1754852381935,0.216496,804.47,803.65,2.79576934]
[1754852383933,0.216496,804.47,803.71,2.79576934]
[1754852386640,0.216496,804.47,803.07,0.216496]
[1754852386641,0.216496,804.47,803.68,2.79576934]
[1754852389740,0.216496,804.47,803.69,2.79576934]
[1754852391842,0.216496,804.47,803.7,2.79576934]
[1754852392748,0.5,804.77,803.7,2.79576934]
[1754852392949,0.82403336,804.76,803.7,2.79576934]
[1754852393148,0.21650678,804.28,803.7,2.79576934]
[1754852393448,0.5,804.77,803.7,2.79576934]
[1754852393649,0.82408576,804.76,803.7,2.79576934]
[1754852393848,0.82408576,804.75,803.7,2.79576934]
[1754852394048,0.5,804.77,803.7,2.79576934]
[1754852394243,0.82408576,804.76,803.7,2.79576934]
[1754852394544,0.21650678,804.51,803.7,2.79576934]
[1754852395648,0.21650678,804.51,803.71,2.79576934]
[1754852396549,0.21650678,804.51,803.67,2.79576934]
[1754852399546,0.21650678,804.51,803.68,2.79576934]
[1754852403249,0.21650678,804.51,803.6,2.79576934]
[1754852405354,0.21650678,804.51,803.59,2.79576934]
[1754852406955,0.21650678,804.51,803.48,2.79576934]
[1754852407956,0.21650678,804.51,803.49,2.79576934]
[1754852410554,0.21650678,804.51,803.43,2.79576934]
[1754852411056,0.21650678,804.51,803.31,2.79576934]
[1754852411658,0.21650678,804.51,803.29,2.79576934]
[1754852412859,0.21650678,804.51,803.36,2.79576934]
[1754852415256,0.21650678,804.51,803.37,2.79576934]
[1754852415857,0.21650678,804.51,803.34,2.79576934]
[1754852416362,0.21650678,804.51,803.17,0.21650678]
[1754852426362,0.21650678,804.51,803.44,2.79576934]
[1754852426767,0.21650678,804.51,803.48,2.79576934]
[1754852427367,0.21650678,804.51,803.67,2.79576934]
[1754852427868,0.21650678,804.51,803.74,2.79576934]
[1754852429470,0.21650678,804.51,803.71,2.79576934]
[1754852431466,0.21650678,804.51,803.7,2.79576934]
[1754852436371,0.21650678,804.51,803.69,2.79576934]
[1754852436771,0.21650678,804.51,803.62,2.79576934]
[1754852438371,0.21650678,804.51,803.61,2.79576934]
[1754852440977,0.21650678,804.51,803.57,2.79576934]
[1754852441376,0.21650678,804.51,803.34,3.90341846]
[1754852441377,0.21650678,804.51,803.56,2.79576934]
[1754852442078,0.21650678,804.51,803.61,2.79576934]
[1754852442480,0.21650678,804.51,803.58,2.79576934]
[1754852445185,0.21650678,804.51,803.57,2.79576934]
[1754852446781,0.21650678,804.51,803.58,2.79576934]
[1754852447282,0.21650678,804.51,803.57,2.79576934]
[1754852447687,0.21650678,804.51,803.58,2.79576934]
[1754852448787,0.21650678,804.51,803.57,2.79576934]
[1754852450888,0.21650678,804.51,803.61,2.79576934]
[1754852456395,0.82413898,804.5,803.61,2.79576934]
[1754852456697,0.21650678,804.51,803.48,2.79576934]
[1754852456896,0.82413898,804.5,803.48,2.79576934]
[1754852457193,0.21650678,804.51,803.48,2.79576934]
[1754852457391,0.82413952,804.5,803.48,2.79576934]
[1754852457596,0.21650678,804.51,803.48,2.79576934]
[1754852457797,0.82414594,804.5,803.48,2.79576934]
[1754852457996,0.21650678,804.51,803.48,2.79576934]
[1754852458193,0.82416199,804.5,803.48,2.79576934]
[1754852458494,0.21650678,804.51,803.48,2.79576934]
[1754852458797,0.82416949,804.5,803.48,2.79576934]
[1754852458997,0.21650678,804.51,803.48,2.79576934]
[1754852459198,0.82417101,804.5,803.48,2.79576934]
[1754852459393,0.21650678,804.51,803.48,2.79576934]
[1754852459593,0.8241797,804.5,803.48,2.79576934]
[1754852459797,0.21650678,804.51,803.48,2.79576934]
[1754852459994,0.8241797,804.5,803.48,2.79576934]
[1754852460193,0.21650678,804.51,803.48,2.79576934]
[1754852460397,0.8241647,804.5,803.48,2.79576934]
[1754852460595,0.21650678,804.51,803.48,2.79576934]
[1754852460795,0.82416469,804.5,803.48,2.79576934]
[1754852460998,0.21650678,804.51,803.48,2.79576934]
[1754852461198,0.82414968,804.5,803.48,2.79576934]
[1754852461501,0.21650678,804.51,803.24,2.79576934]
[1754852461695,0.82416162,804.5,803.24,2.79576934]
[1754852461899,0.21650678,804.51,803.24,2.79576934]
[1754852462195,0.82417271,804.5,803.25,2.79576934]
[1754852462396,0.21650678,804.51,803.25,2.79576934]
[1754852462698,0.82417532,804.5,803.25,2.79576934]
[1754852462998,0.21650678,804.51,803.25,2.79576934]
[1754852463195,0.82418784,804.5,803.26,2.79576934]
[1754852463499,0.21650678,804.51,803.26,2.79576934]
[1754852463697,0.82419079,804.5,803.26,2.79576934]
[1754852463893,0.21650678,804.51,803.26,2.79576934]
[1754852464100,0.82419079,804.5,803.26,2.79576934]
[1754852464297,0.82419079,804.49,803.26,2.79576934]
[1754852464502,0.21650678,804.51,803.26,2.79576934]
[1754852464699,0.82419301,804.5,803.26,2.79576934]
[1754852465001,0.21650678,804.51,803.26,2.79576934]
[1754852465196,0.82409158,804.5,803.26,2.79576934]
[1754852465397,0.82409158,804.49,803.26,2.79576934]
[1754852465600,0.21650678,804.51,803.26,2.79576934]
[1754852465800,0.82409506,804.5,803.26,2.79576934]
[1754852466095,0.82409506,804.49,803.26,2.79576934]
[1754852466298,0.21650678,804.51,803.27,2.79576934]
[1754852466798,0.21650678,804.51,803.43,2.79576934]
[1754852470906,0.21650678,804.51,803.63,2.79576934]
[1754852472907,0.21650678,804.51,803.48,2.79576934]
[1754852474110,0.21650678,804.51,803.46,2.79576934]
[1754852475713,0.21650678,804.51,803.47,2.79576934]
[1754852476617,0.21650678,804.51,803.45,2.79576934]
[1754852479322,0.21650678,804.51,803.42,2.79576934]
[1754852480821,0.21650678,804.51,803.45,2.79576934]
[1754852481919,0.21650678,804.51,803.46,2.79576934]
[1754852482823,0.21650678,804.51,803.57,2.79576934]
[1754852483523,0.21650678,804.51,803.49,2.79576934]
[1754852483923,0.21650678,804.51,803.52,2.79576934]
[1754852486525,0.21650678,804.51,803.53,2.79576934]
[1754852489128,0.21650678,804.51,803.59,2.79576934]
[1754852491725,0.21650678,804.51,803.35,2.79576934]
[1754852492327,0.21650678,804.51,803.26,2.79576934]
[1754852492832,0.21650678,804.51,803.23,2.79576934]
[1754852493336,0.82538037,804.5,803.19,2.79576934]
[1754852493634,0.82538037,804.49,803.19,2.79576934]
[1754852493834,0.21650678,804.51,803.18,2.79576934]
[1754852494034,0.82537162,804.5,803.18,2.79576934]
[1754852494232,0.82537162,804.49,803.18,2.79576934]
[1754852494535,0.21650678,804.51,803.09,0.21656943]
[1754852494536,0.21650678,804.51,803.17,2.79576934]
[1754852494735,0.82516936,804.5,803.17,2.79576934]
[1754852494931,0.21650678,804.51,803.17,2.79576934]
[1754852495132,0.82516934,804.5,803.17,2.79576934]
[1754852495435,0.21650678,804.51,803.17,2.79576934]
[1754852496434,0.82489898,804.5,803.17,2.79576934]
[1754852496636,0.82489898,804.49,803.17,2.79576934]
[1754852496837,0.82489898,804.48,803.17,2.79576934]
[1754852497137,0.82489898,804.47,803.09,0.21656943]
[1754852497337,0.82489898,804.46,803.09,0.21656943]
[1754852497634,0.82489898,804.45,803.09,0.21656943]
[1754852497837,0.82489898,804.44,803.09,0.21656943]
[1754852498037,0.82489898,804.43,803.26,2.79576934]
[1754852498235,0.82489898,804.42,803.26,2.79576934]
[1754852498434,0.82489898,804.41,803.26,2.79576934]
[1754852498735,0.21650678,804.51,803.25,2.79576934]
[1754852498941,0.82472423,804.5,803.25,2.79576934]
[1754852499233,0.82472423,804.49,803.34,2.79576934]
[1754852499438,0.82472423,804.48,803.34,2.79576934]
[1754852499734,0.82472423,804.48,803.09,0.21656943]
[1754852499735,0.82472423,804.47,803.16,2.79576934]
[1754852500038,0.82472423,804.46,803.16,2.79576934]
[1754852500232,0.82472423,804.45,803.16,2.79576934]
[1754852500435,0.82472423,804.44,803.16,2.79576934]
[1754852500636,0.82472423,804.43,803.13,2.79576934]
[1754852500837,0.82472423,804.42,803.13,2.79576934]
[1754852501036,0.21650678,804.51,803.13,2.79576934]
[1754852501239,0.82457928,804.5,803.13,2.79576934]
[1754852501439,0.82457928,804.49,803.13,2.79576934]
[1754852501739,0.82457928,804.48,803.12,2.79576934]
[1754852501939,0.82457928,804.47,803.12,2.79576934]
[1754852502135,0.82457928,804.46,803.12,2.79576934]
[1754852502439,0.82457928,804.45,803.13,2.79576934]
[1754852502639,0.82457928,804.44,803.13,2.79576934]
[1754852502836,0.82457928,804.43,803.13,2.79576934]
[1754852503137,0.82457928,804.42,803.13,2.79576934]
[1754852503340,0.21650678,804.51,803.18,2.79576934]
[1754852503541,0.82503181,804.5,803.18,2.79576934]
[1754852503743,0.82503181,804.49,803.17,2.79576934]
[1754852503939,0.82503181,804.48,803.17,2.79576934]
[1754852504140,0.82503181,804.47,803.17,2.79576934]
[1754852504337,0.82503181,804.46,803.17,2.79576934]
[1754852504542,0.82503181,804.45,803.17,2.79576934]
[1754852504739,0.82503181,804.44,803.17,2.79576934]
[1754852504939,0.82503181,804.43,803.17,2.79576934]
[1754852505142,0.21650678,804.51,803.17,2.79576934]
[1754852505340,0.82497914,804.5,803.17,2.79576934]
[1754852505545,0.82497914,804.49,803.17,2.79576934]
[1754852505841,0.82497914,804.48,803.17,2.79576934]
[1754852506045,0.82497914,804.47,803.17,2.79576934]
[1754852506238,0.82497914,804.46,803.17,2.79576934]
[1754852506443,0.21650678,804.51,803.17,2.79576934]
[1754852506941,0.21650678,804.51,803.31,2.79576934]
[1754852507441,0.21650678,804.51,803.28,2.79576934]
[1754852508449,0.21650678,804.51,803.29,2.79576934]
[1754852509448,0.21650678,804.51,803.46,2.79576934]
[1754852510645,0.21650678,804.51,803.51,2.79576934]
[1754852513052,0.21650678,804.51,803.38,2.79576934]
[1754852513549,0.21650678,804.51,803.34,2.79576934]
[1754852516754,0.21650678,804.51,803.31,2.79576934]
[1754852517155,0.21650678,804.51,803.34,2.79576934]
[1754852518257,0.21650678,804.51,803.19,2.79576934]
[1754852519852,0.21650678,804.51,803.18,2.79576934]
[1754852520864,0.21650678,804.51,803.19,2.79576934]
[1754852523063,0.21650678,804.51,803.24,2.79576934]
[1754852523562,0.21650678,804.51,803.25,2.79576934]
[1754852523965,0.21650678,804.51,803.24,2.79576934]
[1754852524568,0.21650678,804.51,803.28,2.79576934]
[1754852525571,0.21650678,804.51,803.26,2.79576934]
[1754852526072,0.21650678,804.51,803.28,2.79576934]
[1754852526672,0.21650678,804.51,803.3,2.79576934]
[1754852528072,0.21650678,804.51,803.47,2.79576934]
[1754852529669,0.21650678,804.51,803.46,2.79576934]
[1754852530770,0.21650678,804.51,803.45,2.79576934]
[1754852531373,0.21650678,804.51,803.17,3.90341846]
[1754852531673,0.21650678,804.51,803.09,0.21656943]
[1754852532369,0.21650678,804.51,803.45,2.7980894]
[1754852533269,0.21650678,804.51,803.47,2.7980894]
[1754852533869,0.21650678,804.51,803.48,2.7980894]
[1754852534972,0.21650678,804.51,803.47,2.7980894]
[1754852535572,0.21650678,804.51,803.51,2.7980894]
[1754852536577,0.21650678,804.51,803.49,2.7980894]
[1754852540084,0.21650678,804.51,803.36,2.7980894]
[1754852540581,0.21650678,804.51,803.37,2.7980894]
[1754852543284,0.21650678,804.51,803.31,2.7980894]
[1754852545879,0.21650678,804.51,803.32,2.7980894]
[1754852546584,0.82548231,804.5,803.32,2.7980894]
[1754852546883,0.82548231,804.49,803.19,2.7980894]
[1754852547184,0.82548231,804.48,803.19,2.7980894]
[1754852547383,0.82548231,804.47,803.17,2.7980894]
[1754852547583,0.82548231,804.46,803.17,2.7980894]
[1754852547884,0.82548231,804.45,803.18,2.7980894]
[1754852548080,0.82548231,804.44,803.18,2.7980894]
[1754852548280,0.82548231,804.43,803.18,2.7980894]
[1754852548486,0.82548231,804.42,803.18,2.7980894]
[1754852548687,0.82548231,804.41,803.18,2.7980894]
[1754852548887,0.82548231,804.4,803.18,2.7980894]
[1754852549182,0.82548231,804.39,803.18,2.7980894]
[1754852549390,0.82548231,804.38,803.18,2.7980894]
[1754852549586,0.21650678,804.51,803.19,2.7980894]
[1754852549888,0.82574298,804.5,803.19,2.7980894]
[1754852550187,0.82574298,804.49,803.31,2.7980894]
[1754852550385,0.82574298,804.48,803.31,2.7980894]
[1754852550588,0.82574298,804.47,803.17,2.7980894]
[1754852550785,0.82574298,804.46,803.17,2.7980894]
[1754852551089,0.21650678,804.51,803.17,2.7980894]
[1754852551090,0.82574298,804.45,803.17,2.7980894]
[1754852551389,0.82574298,804.44,803.17,2.7980894]
[1754852551590,0.82574298,804.43,803.18,2.7980894]
[1754852551790,0.82574298,804.42,803.18,2.7980894]
[1754852551991,0.82574298,804.41,803.18,2.7980894]
[1754852552192,0.82574298,804.4,803.16,2.7980894]
[1754852552388,0.82574298,804.39,803.16,2.7980894]
[1754852552590,0.82574298,804.38,803.17,2.7980894]
[1754852552892,0.82574298,804.37,803.17,2.7980894]
[1754852553089,0.82574298,804.36,803.22,2.7980894]
[1754852553291,0.82574298,804.35,803.22,2.7980894]
[1754852553592,0.21650678,804.51,803.22,2.7980894]
[1754852553789,0.82634016,804.5,803.22,2.7980894]
[1754852553992,0.82634016,804.49,803.22,2.7980894]
[1754852554192,0.82634016,804.48,803.22,2.7980894]
[1754852554391,0.82634016,804.47,803.22,2.7980894]
[1754852554594,0.82634016,804.46,803.22,2.7980894]
[1754852554794,0.82634016,804.45,803.2,2.7980894]
[1754852554993,0.82634016,804.44,803.2,2.7980894]
[1754852555294,0.82634016,804.43,803.2,2.7980894]
[1754852555494,0.82634016,804.42,803.2,2.7980894]
[1754852555696,0.82634016,804.41,803.2,2.7980894]
[1754852555992,0.82634016,804.4,803.19,2.7980894]
[1754852556295,0.82634016,804.39,803.21,2.7980894]
[1754852556496,0.21650678,804.51,803.21,2.7980894]
[1754852556794,0.21650678,804.51,803.4,2.7980894]
[1754852557396,0.21650678,804.51,803.42,2.7980894]
[1754852560395,0.21650678,804.51,803.56,2.7980894]
[1754852561000,0.21650678,804.51,803.39,2.7980894]
[1754852562597,0.21650678,804.51,803.41,2.7980894]
[1754852563601,0.21650678,804.51,803.4,2.7980894]
[1754852564201,0.21650678,804.51,803.16,2.7980894]
[1754852564596,0.21650678,804.51,803.15,2.7980894]
[1754852566896,0.21650678,804.51,803.11,2.7980894]
[1754852569304,0.21650678,804.51,803.12,2.7980894]
[1754852570902,0.21650678,804.51,803.17,2.7980894]
[1754852571406,0.21650678,804.51,803.09,0.21656943]
[1754852571407,0.21650678,804.51,803.18,2.7980894]
[1754852571900,0.21650678,804.51,803.16,2.7980894]
[1754852572504,0.21650678,804.51,803.18,2.7980894]
[1754852573202,0.21650678,804.51,803.16,2.7980894]
[1754852574004,0.21650678,804.51,803.39,2.7980894]
[1754852574608,0.21650678,804.51,803.4,2.7980894]
[1754852575603,0.21650678,804.51,803.09,0.21656943]
[1754852575604,0.21650678,804.51,803.39,2.7980894]
[1754852576609,0.21650678,804.51,803.45,2.7980894]
[1754852578710,0.21650678,804.51,803.42,2.7980894]
[1754852579810,0.21650678,804.51,803.43,2.7980894]
[1754852581014,0.21650678,804.51,803.57,2.7980894]
[1754852582013,0.21650678,804.51,803.61,2.7980894]
[1754852582308,0.21650678,804.51,803.6,2.7980894]
[1754852582911,0.21650678,804.51,803.73,2.7980894]
[1754852583614,0.21650678,804.51,803.72,2.7980894]
[1754852585515,0.21650678,804.51,803.71,2.7980894]
[1754852586517,0.21650678,804.51,803.65,2.7980894]
[1754852589113,0.21650678,804.51,803.64,2.7980894]
[1754852589616,0.21650678,804.51,803.63,2.7980894]
[1754852590317,0.21650678,804.51,803.62,2.7980894]
[1754852591417,0.21650678,804.51,803.63,2.7980894]
[1754852593424,0.21650678,804.51,803.62,2.7980894]
[1754852594525,0.5,804.7,803.62,2.7980894]
[1754852594820,0.21652361,804.29,803.62,2.7980894]
[1754852595019,0.5,804.7,803.62,2.7980894]
[1754852595323,0.21652361,804.17,803.62,2.7980894]
[1754852595524,0.5,804.7,803.62,2.7980894]
[1754852595819,0.21652361,804.17,803.62,2.7980894]
[1754852596024,0.5,804.7,803.62,2.7980894]
[1754852596323,0.21652361,804.17,803.62,2.7980894]
[1754852596620,0.5,804.7,803.51,2.7980894]
[1754852596824,0.82428506,804.69,803.51,2.7980894]
[1754852597026,0.82428506,804.68,803.51,2.7980894]
[1754852597321,0.82428506,804.67,803.51,2.7980894]
[1754852597525,0.82428506,804.66,803.51,2.7980894]
[1754852597725,0.82428506,804.65,803.51,2.7980894]
[1754852598024,0.21653304,804.39,803.51,2.7980894]
[1754852606529,0.21653304,804.39,803.42,2.7980894]
[1754852606930,0.21653304,804.39,803.58,2.7980894]
[1754852610035,0.21653304,804.39,803.59,2.7980894]
[1754852612736,0.21653304,804.39,803.31,3.9173252]
[1754852612737,0.21653304,804.39,803.6,2.7980894]
[1754852613236,0.21653304,804.39,803.64,2.7980894]
[1754852614937,0.21653304,804.39,803.65,2.7980894]
[1754852615234,0.21653304,804.39,803.38,3.9173252]
[1754852615839,0.21653304,804.39,803.36,2.7980894]
[1754852616439,0.21653304,804.39,803.4,2.7980894]
[1754852619039,0.21653304,804.39,803.42,2.7980894]
[1754852620742,0.21653304,804.39,803.43,2.7980894]
[1754852621743,0.21653304,804.39,803.37,2.7980894]
[1754852623843,0.21653304,804.39,803.38,2.7980894]
[1754852625346,0.21653304,804.39,803.58,2.7980894]
[1754852626947,0.21653304,804.39,803.6,2.7980894]
[1754852627447,0.21653304,804.39,803.61,2.7980894]
[1754852628143,0.21653304,804.39,803.58,2.7980894]
[1754852629645,0.21653304,804.39,803.59,2.7980894]
[1754852630649,0.21653304,804.39,803.56,2.7980894]
[1754852631651,0.21653304,804.39,803.68,2.7980894]
[1754852632152,0.21653304,804.39,803.69,2.7980894]
[1754852633650,0.21653304,804.39,803.7,2.7980894]
[1754852634254,0.21653304,804.39,803.69,2.7980894]
[1754852634854,0.21653304,804.39,803.61,2.7980894]
[1754852635955,0.21653304,804.39,803.54,2.7980894]
[1754852636456,0.21653304,804.39,803.52,2.7980894]
[1754852636855,0.21653304,804.39,803.38,2.7980894]
[1754852637854,0.21653304,804.39,803.09,0.21656943]
[1754852637855,0.21653304,804.39,803.41,2.7980894]
[1754852638955,0.21653304,804.39,803.43,2.7980894]
[1754852639457,0.21653304,804.39,803.44,2.7980894]
[1754852640555,0.21653304,804.39,803.46,2.7980894]
[1754852641159,0.21653304,804.39,803.45,2.7980894]
[1754852642561,0.21653304,804.39,803.47,2.7980894]
[1754852643064,0.21653304,804.39,803.13,3.9173252]
[1754852643065,0.21653304,804.39,803.45,2.7980894]
[1754852644666,0.21653304,804.39,803.31,2.7980894]
[1754852645269,0.21653304,804.39,803.37,2.7980894]
[1754852645667,0.21653304,804.39,803.34,2.7980894]
[1754852646168,0.21653304,804.39,803.35,2.7980894]
[1754852646865,0.21653304,804.39,803.49,2.7980894]
[1754852647264,0.21653304,804.39,803.09,0.21656943]
[1754852647265,0.21653304,804.39,803.22,2.7980894]
[1754852647870,0.21653304,804.39,803.28,2.7980894]
[1754852648374,0.21653304,804.39,803.24,2.7980894]
[1754852648972,0.21653304,804.39,803.25,2.7980894]
[1754852651476,0.21653304,804.39,803.09,0.21656943]
[1754852651477,0.21653304,804.39,803.24,2.7980894]
[1754852655185,0.21653304,804.39,803.19,2.7980894]
[1754852655790,0.21653304,804.39,803.13,2.7980894]
[1754852656184,0.21653304,804.39,803.17,2.7980894]
[1754852657189,0.21653304,804.39,803.18,2.7980894]
[1754852657789,0.21653304,804.39,803.17,2.7980894]
[1754852659789,0.21653304,804.39,803.14,2.7980894]
[1754852660294,0.21653304,804.39,803.21,2.7980894]
[1754852660893,0.21653304,804.39,803.31,2.7980894]